[Event "Titled Tuesday Blitz September 27 Early 2022"]
[White "Harsha Bharathakoti"]
[Black "Diaz Perez, Michel Alejandro"]
[WhiteFideId "5078776"]
[BlackFideId "3517179"]
[WhiteElo "2523"]
[BlackElo "2313"]
[Result "1-0"]
[Round "03"]
[TimeControl "180+1"]
[Date "2022.09.27"]
[WhiteClock "0:01:15"]
[BlackClock "0:01:03"]

1. Nf3 {[%clk 0:03:00]}  Nf6 {[%clk 0:02:59]} 2. c4 {[%clk 0:03:01]}  e6 {[%clk 0:02:59]} 3. Nc3 {[%clk 0:03:01]}  d5 {[%clk 0:02:59]} 4. e3 {[%clk 0:03:01]}  Nbd7 {[%clk 0:02:59]} 5. b3 {[%clk 0:03:02]}  b6 {[%clk 0:02:57]} 6. Bb2 {[%clk 0:03:02]}  Bb7 {[%clk 0:02:58]} 7. d4 {[%clk 0:03:03]}  Be7 {[%clk 0:02:58]} 8. cxd5 {[%clk 0:03:02]}  exd5 {[%clk 0:02:58]} 9. Bd3 {[%clk 0:03:03]}  O-O {[%clk 0:02:57]} 10. O-O {[%clk 0:03:04]}  a6 {[%clk 0:02:58]} 11. Ne5 {[%clk 0:03:04]}  Bd6 {[%clk 0:02:58]} 12. f4 {[%clk 0:03:04]}  c5 {[%clk 0:02:57]} 13. Qf3 {[%clk 0:03:02]}  Re8 {[%clk 0:02:52]} 14. Qh3 {[%clk 0:02:51]}  Nf8 {[%clk 0:02:50]} 15. g4 {[%clk 0:02:24]}  Ne4 {[%clk 0:02:26]} 16. Nxe4 {[%clk 0:02:24]}  dxe4 {[%clk 0:02:25]} 17. Bc4 {[%clk 0:02:25]}  Bxe5 {[%clk 0:02:26]} 18. dxe5 {[%clk 0:02:04]}  b5 {[%clk 0:02:16]} 19. Rfd1 {[%clk 0:02:04]}  Qb6 {[%clk 0:02:12]} 20. Be2 {[%clk 0:02:02]}  Rad8 {[%clk 0:02:12]} 21. f5 {[%clk 0:01:56]}  Rxd1+ {[%clk 0:02:08]} 22. Rxd1 {[%clk 0:01:57]}  Rd8 {[%clk 0:02:08]} 23. Qf1 {[%clk 0:01:45]}  Qc7 {[%clk 0:02:04]} 24. Rxd8 {[%clk 0:01:29]}  Qxd8 {[%clk 0:02:03]} 25. Qc1 {[%clk 0:01:29]}  Qd5 {[%clk 0:01:59]} 26. Qc3 {[%clk 0:01:20]}  Bc8 {[%clk 0:01:20]} 27. e6 {[%clk 0:01:14]}  f6 {[%clk 0:01:03]} 28. e7 {[%clk 0:01:15]} 1-0


[Site "https://www.chess.com"]

[Event "Titled Tuesday Blitz September 27 Early 2022"]
[White "Heinemann, Josefine"]
[Black "Jiganchine, Roman"]
[WhiteFideId "12900460"]
[BlackFideId "2603667"]
[WhiteElo "2300"]
[BlackElo "2270"]
[Result "1-0"]
[Round "03"]
[TimeControl "180+1"]
[Date "2022.09.27"]
[WhiteClock "0:00:17"]
[BlackClock "0:00:20"]

1. e4 {[%clk 0:03:00]}  c6 {[%clk 0:02:54]} 2. d4 {[%clk 0:02:58]}  d5 {[%clk 0:02:54]} 3. Nd2 {[%clk 0:02:59]}  dxe4 {[%clk 0:02:53]} 4. Nxe4 {[%clk 0:03:00]}  Nf6 {[%clk 0:02:54]} 5. Nxf6+ {[%clk 0:02:59]}  exf6 {[%clk 0:02:55]} 6. Be3 {[%clk 0:02:53]}  Bd6 {[%clk 0:02:53]} 7. Bd3 {[%clk 0:02:52]}  Na6 {[%clk 0:02:53]} 8. Bxa6 {[%clk 0:02:45]}  Qa5+ {[%clk 0:02:52]} 9. Qd2 {[%clk 0:02:40]}  Qxa6 {[%clk 0:02:52]} 10. Ne2 {[%clk 0:02:41]}  Bf5 {[%clk 0:02:42]} 11. O-O {[%clk 0:02:39]}  O-O {[%clk 0:02:42]} 12. Ng3 {[%clk 0:02:38]}  Bg6 {[%clk 0:02:37]} 13. b3 {[%clk 0:02:38]}  Rfe8 {[%clk 0:02:31]} 14. c4 {[%clk 0:02:37]}  Rad8 {[%clk 0:02:31]} 15. Bf4 {[%clk 0:02:27]}  Bc5 {[%clk 0:02:12]} 16. Rfe1 {[%clk 0:02:05]}  Rxe1+ {[%clk 0:02:04]} 17. Rxe1 {[%clk 0:02:04]}  h5 {[%clk 0:02:04]} 18. d5 {[%clk 0:01:41]}  Qa3 {[%clk 0:01:53]} 19. Bc7 {[%clk 0:01:13]}  Bb4 {[%clk 0:01:44]} 20. Qe2 {[%clk 0:01:12]}  Rc8 {[%clk 0:01:26]} 21. d6 {[%clk 0:01:03]}  Bxd6 {[%clk 0:01:24]} 22. Bxd6 {[%clk 0:01:03]}  Qxd6 {[%clk 0:01:23]} 23. Nxh5 {[%clk 0:01:03]}  Bxh5 {[%clk 0:01:19]} 24. Qxh5 {[%clk 0:01:02]}  Rd8 {[%clk 0:01:16]} 25. g3 {[%clk 0:00:58]}  Qd2 {[%clk 0:01:15]} 26. Re7 {[%clk 0:00:38]}  g6 {[%clk 0:01:08]} 27. Qf3 {[%clk 0:00:35]}  b6 {[%clk 0:00:44]} 28. Qxf6 {[%clk 0:00:33]}  Rf8 {[%clk 0:00:27]} 29. Rxa7 {[%clk 0:00:31]}  Qd1+ {[%clk 0:00:26]} 30. Kg2 {[%clk 0:00:30]}  c5 {[%clk 0:00:24]} 31. h4 {[%clk 0:00:20]}  Qd3 {[%clk 0:00:23]} 32. Rb7 {[%clk 0:00:17]}  Qe4+ {[%clk 0:00:22]} 33. Qf3 {[%clk 0:00:17]}  Qe6 {[%clk 0:00:23]} 34. Qd5 {[%clk 0:00:16]}  Qf6 {[%clk 0:00:22]} 35. h5 {[%clk 0:00:16]}  Rd8 {[%clk 0:00:22]} 36. Rxf7 {[%clk 0:00:13]}  Rxd5 {[%clk 0:00:20]} 37. Rxf6 {[%clk 0:00:13]}  Rd2 {[%clk 0:00:19]} 38. Rxg6+ {[%clk 0:00:13]}  Kh7 {[%clk 0:00:19]} 39. Rxb6 {[%clk 0:00:14]}  Rxa2 {[%clk 0:00:19]} 40. g4 {[%clk 0:00:14]}  Rb2 {[%clk 0:00:19]} 41. Kg3 {[%clk 0:00:15]}  Rc2 {[%clk 0:00:19]} 42. f4 {[%clk 0:00:15]}  Rc3+ {[%clk 0:00:19]} 43. Kh4 {[%clk 0:00:15]}  Rc1 {[%clk 0:00:20]} 44. Kg5 {[%clk 0:00:15]}  Rf1 {[%clk 0:00:20]} 45. Rb7+ {[%clk 0:00:16]}  Kg8 {[%clk 0:00:20]} 46. f5 {[%clk 0:00:17]} 1-0


[Site "https://www.chess.com"]

[Event "Titled Tuesday Blitz September 27 Early 2022"]
[White "Hristodoulou, Panagiotis"]
[Black "Principe, Gerson"]
[WhiteFideId "4214340"]
[BlackFideId "3804550"]
[WhiteElo "2172"]
[BlackElo "2280"]
[Result "1/2-1/2"]
[Round "03"]
[TimeControl "180+1"]
[Date "2022.09.27"]
[WhiteClock "0:00:07"]
[BlackClock "0:00:03"]

1. e4 {[%clk 0:02:57]}  c6 {[%clk 0:02:58]} 2. d4 {[%clk 0:02:55]}  d5 {[%clk 0:02:58]} 3. e5 {[%clk 0:02:56]}  Bf5 {[%clk 0:02:57]} 4. Nf3 {[%clk 0:02:55]}  e6 {[%clk 0:02:57]} 5. Be2 {[%clk 0:02:51]}  Nd7 {[%clk 0:02:57]} 6. O-O {[%clk 0:02:42]}  Bg6 {[%clk 0:02:57]} 7. Nbd2 {[%clk 0:02:41]}  Ne7 {[%clk 0:02:58]} 8. Re1 {[%clk 0:02:38]}  Nf5 {[%clk 0:02:58]} 9. Nb3 {[%clk 0:02:22]}  Be7 {[%clk 0:02:57]} 10. Bd2 {[%clk 0:02:19]}  O-O {[%clk 0:02:56]} 11. c4 {[%clk 0:02:19]}  dxc4 {[%clk 0:02:42]} 12. Bxc4 {[%clk 0:02:19]}  Nb6 {[%clk 0:02:43]} 13. Bf1 {[%clk 0:02:15]}  Nd5 {[%clk 0:02:42]} 14. Rc1 {[%clk 0:02:14]}  Rc8 {[%clk 0:02:38]} 15. a3 {[%clk 0:02:05]}  Bh5 {[%clk 0:02:25]} 16. h3 {[%clk 0:02:01]}  Nh4 {[%clk 0:02:15]} 17. Be2 {[%clk 0:01:54]}  Nxf3+ {[%clk 0:02:14]} 18. Bxf3 {[%clk 0:01:55]}  Bxf3 {[%clk 0:02:15]} 19. Qxf3 {[%clk 0:01:56]}  b6 {[%clk 0:02:12]} 20. Rc2 {[%clk 0:01:55]}  Qd7 {[%clk 0:02:12]} 21. Rec1 {[%clk 0:01:55]}  Rc7 {[%clk 0:02:12]} 22. Be3 {[%clk 0:01:52]}  Rfc8 {[%clk 0:02:12]} 23. Nd2 {[%clk 0:01:52]}  c5 {[%clk 0:02:06]} 24. dxc5 {[%clk 0:01:46]}  Nxe3 {[%clk 0:02:05]} 25. Qxe3 {[%clk 0:01:38]}  Bxc5 {[%clk 0:02:05]} 26. Qe4 {[%clk 0:01:39]}  g6 {[%clk 0:02:00]} 27. Nf3 {[%clk 0:01:34]}  Be7 {[%clk 0:01:54]} 28. Kh2 {[%clk 0:01:29]}  Rxc2 {[%clk 0:01:49]} 29. Rxc2 {[%clk 0:01:30]}  Rxc2 {[%clk 0:01:49]} 30. Qxc2 {[%clk 0:01:31]}  a5 {[%clk 0:01:49]} 31. Qc4 {[%clk 0:01:28]}  Bc5 {[%clk 0:01:49]} 32. Kg3 {[%clk 0:01:27]}  h6 {[%clk 0:01:42]} 33. b4 {[%clk 0:01:27]}  axb4 {[%clk 0:01:41]} 34. axb4 {[%clk 0:01:28]}  Be7 {[%clk 0:01:41]} 35. Nd4 {[%clk 0:01:23]}  Kg7 {[%clk 0:01:33]} 36. Nc6 {[%clk 0:01:18]}  Bd8 {[%clk 0:01:24]} 37. b5 {[%clk 0:01:16]}  Be7 {[%clk 0:01:22]} 38. Qd4 {[%clk 0:00:55]}  Qc7 {[%clk 0:01:15]} 39. Kf3 {[%clk 0:00:48]}  Bc5 {[%clk 0:01:13]} 40. Qf4 {[%clk 0:00:46]}  Be7 {[%clk 0:01:02]} 41. g3 {[%clk 0:00:42]}  Qd7 {[%clk 0:00:53]} 42. Qd4 {[%clk 0:00:40]}  Qc7 {[%clk 0:00:47]} 43. Ke2 {[%clk 0:00:30]}  Bc5 {[%clk 0:00:44]} 44. Qd8 {[%clk 0:00:27]}  Qxd8 {[%clk 0:00:31]} 45. Nxd8 {[%clk 0:00:28]}  Kf8 {[%clk 0:00:32]} 46. f4 {[%clk 0:00:26]}  Ke7 {[%clk 0:00:30]} 47. Nc6+ {[%clk 0:00:26]}  Kd7 {[%clk 0:00:30]} 48. Kf3 {[%clk 0:00:27]}  h5 {[%clk 0:00:29]} 49. g4 {[%clk 0:00:23]}  hxg4+ {[%clk 0:00:29]} 50. hxg4 {[%clk 0:00:21]}  Ke8 {[%clk 0:00:29]} 51. Ke4 {[%clk 0:00:21]}  Kd7 {[%clk 0:00:23]} 52. f5 {[%clk 0:00:17]}  gxf5+ {[%clk 0:00:23]} 53. gxf5 {[%clk 0:00:18]}  exf5+ {[%clk 0:00:20]} 54. Kxf5 {[%clk 0:00:18]}  Ke8 {[%clk 0:00:20]} 55. Kf6 {[%clk 0:00:10]}  Ba3 {[%clk 0:00:17]} 56. Nd4 {[%clk 0:00:08]}  Bb2 {[%clk 0:00:16]} 57. Nf5 {[%clk 0:00:07]}  Ba3 {[%clk 0:00:15]} 58. Ne3 {[%clk 0:00:04]}  Be7+ {[%clk 0:00:14]} 59. Kf5 {[%clk 0:00:04]}  Bc5 {[%clk 0:00:15]} 60. Nd5 {[%clk 0:00:02]}  Kd7 {[%clk 0:00:15]} 61. Kf6 {[%clk 0:00:03]}  Ke8 {[%clk 0:00:15]} 62. e6 {[%clk 0:00:03]}  fxe6 {[%clk 0:00:14]} 63. Kxe6 {[%clk 0:00:04]}  Kd8 {[%clk 0:00:15]} 64. Nf4 {[%clk 0:00:03]}  Kc7 {[%clk 0:00:15]} 65. Kd5 {[%clk 0:00:03]}  Kb7 {[%clk 0:00:15]} 66. Ne6 {[%clk 0:00:04]}  Bg1 {[%clk 0:00:15]} 67. Kd6 {[%clk 0:00:04]}  Bh2+ {[%clk 0:00:15]} 68. Kd7 {[%clk 0:00:05]}  Bg1 {[%clk 0:00:16]} 69. Nd8+ {[%clk 0:00:05]}  Ka7 {[%clk 0:00:16]} 70. Kc6 {[%clk 0:00:05]}  Bf2 {[%clk 0:00:16]} 71. Nf7 {[%clk 0:00:05]}  Bg1 {[%clk 0:00:16]} 72. Nd6 {[%clk 0:00:05]}  Kb8 {[%clk 0:00:14]} 73. Kd7 {[%clk 0:00:04]}  Bh2 {[%clk 0:00:13]} 74. Nc4 {[%clk 0:00:04]}  Bg1 {[%clk 0:00:14]} 75. Kc6 {[%clk 0:00:04]}  Ka7 {[%clk 0:00:14]} 76. Kc7 {[%clk 0:00:04]}  Bh2+ {[%clk 0:00:14]} 77. Kc8 {[%clk 0:00:05]}  Bg1 {[%clk 0:00:15]} 78. Ne5 {[%clk 0:00:05]}  Ka8 {[%clk 0:00:13]} 79. Nc6 {[%clk 0:00:04]}  Bf2 {[%clk 0:00:13]} 80. Kc7 {[%clk 0:00:04]}  Bg1 {[%clk 0:00:13]} 81. Ne7 {[%clk 0:00:04]}  Ka7 {[%clk 0:00:12]} 82. Nc8+ {[%clk 0:00:04]}  Ka8 {[%clk 0:00:12]} 83. Kc6 {[%clk 0:00:05]}  Kb8 {[%clk 0:00:09]} 84. Nxb6 {[%clk 0:00:05]}  Ka7 {[%clk 0:00:09]} 85. Nd7 {[%clk 0:00:05]}  Ka8 {[%clk 0:00:09]} 86. Nc5 {[%clk 0:00:05]}  Kb8 {[%clk 0:00:05]} 87. b6 {[%clk 0:00:04]}  Bxc5 {[%clk 0:00:03]} 88. Kxc5 {[%clk 0:00:05]}  Kb7 {[%clk 0:00:03]} 89. Kb5 {[%clk 0:00:05]}  Kb8 {[%clk 0:00:01]} 90. Kc6 {[%clk 0:00:06]}  Ka8 {[%clk 0:00:02]} 91. b7+ {[%clk 0:00:07]}  Kb8 {[%clk 0:00:03]} 92. Kb6 {[%clk 0:00:07]} 1/2-1/2


[Site "https://www.chess.com"]

[Event "Titled Tuesday Blitz September 27 Early 2022"]
[White "Jakubowski, Krzysztof"]
[Black "Murtazin, Ruslan"]
[WhiteFideId "1112848"]
[BlackFideId "24175960"]
[WhiteElo "2306"]
[BlackElo "2212"]
[Result "0-1"]
[Round "03"]
[TimeControl "180+1"]
[Date "2022.09.27"]
[WhiteClock "0:00:27"]
[BlackClock "0:00:05"]

1. e4 {[%clk 0:03:00]}  e6 {[%clk 0:02:59]} 2. d4 {[%clk 0:03:00]}  d5 {[%clk 0:03:00]} 3. Nc3 {[%clk 0:02:59]}  Nf6 {[%clk 0:03:00]} 4. e5 {[%clk 0:02:59]}  Nfd7 {[%clk 0:03:00]} 5. Nce2 {[%clk 0:02:59]}  c5 {[%clk 0:02:56]} 6. c3 {[%clk 0:02:59]}  Nc6 {[%clk 0:02:56]} 7. f4 {[%clk 0:02:58]}  Be7 {[%clk 0:02:49]} 8. Nf3 {[%clk 0:02:58]}  f6 {[%clk 0:02:47]} 9. a3 {[%clk 0:02:54]}  O-O {[%clk 0:02:03]} 10. Be3 {[%clk 0:02:46]}  Qb6 {[%clk 0:02:01]} 11. b4 {[%clk 0:02:43]}  cxd4 {[%clk 0:02:01]} 12. cxd4 {[%clk 0:02:39]}  a5 {[%clk 0:01:58]} 13. b5 {[%clk 0:02:39]}  Qxb5 {[%clk 0:01:56]} 14. Nc3 {[%clk 0:02:39]}  Qb6 {[%clk 0:01:54]} 15. Rb1 {[%clk 0:02:39]}  Qd8 {[%clk 0:01:54]} 16. Bd3 {[%clk 0:02:38]}  f5 {[%clk 0:01:50]} 17. h3 {[%clk 0:02:35]}  Nb6 {[%clk 0:01:45]} 18. g4 {[%clk 0:02:33]}  Nc4 {[%clk 0:01:43]} 19. Bc1 {[%clk 0:02:19]}  Nxa3 {[%clk 0:01:22]} 20. Bxa3 {[%clk 0:02:10]}  Bxa3 {[%clk 0:01:23]} 21. gxf5 {[%clk 0:02:08]}  exf5 {[%clk 0:01:21]} 22. Nb5 {[%clk 0:02:00]}  Be7 {[%clk 0:00:59]} 23. Rg1 {[%clk 0:01:58]}  h6 {[%clk 0:00:57]} 24. Rb2 {[%clk 0:01:54]}  Kh7 {[%clk 0:00:55]} 25. Rbg2 {[%clk 0:01:53]}  Rf7 {[%clk 0:00:55]} 26. Ng5+ {[%clk 0:01:14]}  hxg5 {[%clk 0:00:32]} 27. Qh5+ {[%clk 0:01:12]}  Kg8 {[%clk 0:00:32]} 28. fxg5 {[%clk 0:01:07]}  g6 {[%clk 0:00:32]} 29. Qxg6+ {[%clk 0:01:07]}  Rg7 {[%clk 0:00:32]} 30. Qh5 {[%clk 0:01:07]}  Be6 {[%clk 0:00:24]} 31. g6 {[%clk 0:01:06]}  Qd7 {[%clk 0:00:18]} 32. Rf2 {[%clk 0:00:54]}  Rf8 {[%clk 0:00:18]} 33. Rgf1 {[%clk 0:00:54]}  Nb4 {[%clk 0:00:15]} 34. Be2 {[%clk 0:00:53]}  a4 {[%clk 0:00:13]} 35. Qh6 {[%clk 0:00:49]}  Nc6 {[%clk 0:00:11]} 36. Bd3 {[%clk 0:00:46]}  a3 {[%clk 0:00:11]} 37. Bb1 {[%clk 0:00:42]}  Nb4 {[%clk 0:00:08]} 38. Nc3 {[%clk 0:00:39]}  Qc6 {[%clk 0:00:07]} 39. Qd2 {[%clk 0:00:35]}  Qc4 {[%clk 0:00:06]} 40. h4 {[%clk 0:00:34]}  a2 {[%clk 0:00:05]} 41. Bxa2 {[%clk 0:00:33]}  Nxa2 {[%clk 0:00:05]} 42. Nxa2 {[%clk 0:00:34]}  Ra8 {[%clk 0:00:05]} 43. h5 {[%clk 0:00:33]}  Bh4 {[%clk 0:00:03]} 44. Kd1 {[%clk 0:00:29]}  Bxf2 {[%clk 0:00:02]} 45. Rxf2 {[%clk 0:00:30]}  Qb3+ {[%clk 0:00:02]} 46. Ke1 {[%clk 0:00:29]}  Rc7 {[%clk 0:00:03]} 47. h6 {[%clk 0:00:29]}  Rxa2 {[%clk 0:00:04]} 48. h7+ {[%clk 0:00:28]}  Kg7 {[%clk 0:00:04]} 49. Qh6+ {[%clk 0:00:28]}  Kxh6 {[%clk 0:00:03]} 50. h8=Q+ {[%clk 0:00:29]}  Kg5 {[%clk 0:00:04]} 51. Rg2+ {[%clk 0:00:28]}  Rxg2 {[%clk 0:00:04]} 52. Qf6+ {[%clk 0:00:28]}  Kf4 {[%clk 0:00:04]} 53. Qh4+ {[%clk 0:00:28]}  Rg4 {[%clk 0:00:05]} 54. Qh6+ {[%clk 0:00:27]}  Kg3 {[%clk 0:00:05]} 0-1


[Site "https://www.chess.com"]

[Event "Titled Tuesday Blitz September 27 Early 2022"]
[White "Jimenez Almeida, Luis David"]
[Black "Stremavicius, Titas"]
[WhiteFideId "22242244"]
[BlackFideId "12804444"]
[WhiteElo "2077"]
[BlackElo "2399"]
[Result "0-1"]
[Round "03"]
[TimeControl "180+1"]
[Date "2022.09.27"]
[WhiteClock "0:00:02"]
[BlackClock "0:00:17"]

1. e4 {[%clk 0:02:59]}  c5 {[%clk 0:02:58]} 2. Nc3 {[%clk 0:02:59]}  e6 {[%clk 0:02:57]} 3. g3 {[%clk 0:02:59]}  a6 {[%clk 0:02:58]} 4. Bg2 {[%clk 0:02:59]}  b5 {[%clk 0:02:59]} 5. Nge2 {[%clk 0:02:59]}  Bb7 {[%clk 0:02:59]} 6. d4 {[%clk 0:02:59]}  cxd4 {[%clk 0:02:56]} 7. Nxd4 {[%clk 0:03:00]}  Nc6 {[%clk 0:02:56]} 8. O-O {[%clk 0:02:57]}  Nxd4 {[%clk 0:02:54]} 9. Qxd4 {[%clk 0:02:57]}  Ne7 {[%clk 0:02:55]} 10. Re1 {[%clk 0:02:47]}  Nc6 {[%clk 0:02:55]} 11. Qd3 {[%clk 0:02:46]}  d6 {[%clk 0:02:41]} 12. Bf4 {[%clk 0:02:40]}  Be7 {[%clk 0:02:40]} 13. Rad1 {[%clk 0:02:39]}  Ne5 {[%clk 0:02:40]} 14. Qe2 {[%clk 0:02:23]}  Qc7 {[%clk 0:02:40]} 15. Be3 {[%clk 0:02:10]}  O-O {[%clk 0:02:35]} 16. f4 {[%clk 0:02:07]}  Nc4 {[%clk 0:02:35]} 17. Bc1 {[%clk 0:02:04]}  Rac8 {[%clk 0:02:33]} 18. Kh1 {[%clk 0:02:04]}  Bf6 {[%clk 0:02:22]} 19. Rd3 {[%clk 0:02:00]}  Nb6 {[%clk 0:02:14]} 20. a3 {[%clk 0:01:53]}  Nc4 {[%clk 0:02:11]} 21. Nd1 {[%clk 0:01:49]}  Rfd8 {[%clk 0:02:07]} 22. c3 {[%clk 0:01:49]}  d5 {[%clk 0:02:01]} 23. e5 {[%clk 0:01:47]}  Be7 {[%clk 0:02:01]} 24. Ne3 {[%clk 0:01:36]}  a5 {[%clk 0:02:01]} 25. b4 {[%clk 0:01:18]}  axb4 {[%clk 0:01:39]} 26. axb4 {[%clk 0:01:19]}  d4 {[%clk 0:01:32]} 27. Rxd4 {[%clk 0:01:14]}  Rxd4 {[%clk 0:01:31]} 28. cxd4 {[%clk 0:01:15]}  Bxb4 {[%clk 0:01:31]} 29. Rd1 {[%clk 0:01:13]}  Bxg2+ {[%clk 0:01:28]} 30. Qxg2 {[%clk 0:01:12]}  Nb6 {[%clk 0:01:19]} 31. h4 {[%clk 0:01:11]}  g6 {[%clk 0:01:18]} 32. h5 {[%clk 0:01:10]}  Qc3 {[%clk 0:01:12]} 33. h6 {[%clk 0:00:57]}  Bf8 {[%clk 0:01:05]} 34. d5 {[%clk 0:00:43]}  Nxd5 {[%clk 0:01:01]} 35. Nxd5 {[%clk 0:00:37]}  exd5 {[%clk 0:01:01]} 36. Kh2 {[%clk 0:00:24]}  d4 {[%clk 0:00:59]} 37. Bb2 {[%clk 0:00:24]}  Qb3 {[%clk 0:00:58]} 38. Rxd4 {[%clk 0:00:20]}  Bxh6 {[%clk 0:00:58]} 39. Kh3 {[%clk 0:00:15]}  Bg7 {[%clk 0:00:57]} 40. Qd2 {[%clk 0:00:09]}  h5 {[%clk 0:00:55]} 41. Rd8+ {[%clk 0:00:08]}  Rxd8 {[%clk 0:00:55]} 42. Qxd8+ {[%clk 0:00:09]}  Kh7 {[%clk 0:00:56]} 43. Qd2 {[%clk 0:00:09]}  b4 {[%clk 0:00:55]} 44. Qd4 {[%clk 0:00:08]}  Qe6+ {[%clk 0:00:51]} 45. Kg2 {[%clk 0:00:07]}  b3 {[%clk 0:00:51]} 46. Kh2 {[%clk 0:00:08]}  Qc6 {[%clk 0:00:50]} 47. Kg1 {[%clk 0:00:08]}  Bf8 {[%clk 0:00:50]} 48. Kh2 {[%clk 0:00:08]}  Qc2+ {[%clk 0:00:50]} 49. Kh3 {[%clk 0:00:07]}  Bc5 {[%clk 0:00:49]} 50. Qd5 {[%clk 0:00:06]}  Kg8 {[%clk 0:00:41]} 51. Qd8+ {[%clk 0:00:05]}  Kh7 {[%clk 0:00:39]} 52. Qf6 {[%clk 0:00:06]}  Qf5+ {[%clk 0:00:33]} 53. Qxf5 {[%clk 0:00:05]}  gxf5 {[%clk 0:00:34]} 54. Kh4 {[%clk 0:00:04]}  Kg6 {[%clk 0:00:32]} 55. Kh3 {[%clk 0:00:05]}  Be3 {[%clk 0:00:29]} 56. Kh4 {[%clk 0:00:05]}  Bf2 {[%clk 0:00:26]} 57. Kh3 {[%clk 0:00:05]}  Be1 {[%clk 0:00:24]} 58. Kh4 {[%clk 0:00:06]}  Bd2 {[%clk 0:00:16]} 59. Kh3 {[%clk 0:00:06]}  h4 {[%clk 0:00:16]} 60. Kxh4 {[%clk 0:00:06]}  Be3 {[%clk 0:00:16]} 61. Kh3 {[%clk 0:00:07]}  Kh5 {[%clk 0:00:17]} 62. e6 {[%clk 0:00:04]}  fxe6 {[%clk 0:00:17]} 63. Kg2 {[%clk 0:00:05]}  Kg4 {[%clk 0:00:17]} 64. Kh2 {[%clk 0:00:04]}  Bf2 {[%clk 0:00:17]} 65. Kg2 {[%clk 0:00:03]}  Bxg3 {[%clk 0:00:17]} 66. Bd4 {[%clk 0:00:02]}  Bxf4 {[%clk 0:00:17]} 0-1


[Site "https://www.chess.com"]

[Event "Titled Tuesday Blitz September 27 Early 2022"]
[White "Johnson, Ben"]
[Black "Aggelis, Nikolaos"]
[WhiteFideId "2010917"]
[BlackFideId "4213220"]
[WhiteElo "2213"]
[BlackElo "2154"]
[Result "0-1"]
[Round "03"]
[TimeControl "180+1"]
[Date "2022.09.27"]
[WhiteClock "0:00:04"]
[BlackClock "0:00:36"]

1. Nf3 {[%clk 0:03:00]}  Nf6 {[%clk 0:02:54]} 2. c4 {[%clk 0:03:00]}  c6 {[%clk 0:02:53]} 3. d4 {[%clk 0:02:59]}  d5 {[%clk 0:02:05]} 4. b3 {[%clk 0:02:59]}  g6 {[%clk 0:02:03]} 5. e3 {[%clk 0:02:43]}  Bg7 {[%clk 0:01:59]} 6. Bd3 {[%clk 0:02:40]}  O-O {[%clk 0:02:00]} 7. O-O {[%clk 0:02:40]}  b6 {[%clk 0:02:01]} 8. cxd5 {[%clk 0:02:30]}  Nxd5 {[%clk 0:01:55]} 9. e4 {[%clk 0:02:29]}  Nb4 {[%clk 0:01:55]} 10. Be2 {[%clk 0:02:30]}  Ba6 {[%clk 0:01:55]} 11. Bxa6 {[%clk 0:02:23]}  N4xa6 {[%clk 0:01:52]} 12. Bg5 {[%clk 0:02:18]}  c5 {[%clk 0:01:50]} 13. Nc3 {[%clk 0:01:50]}  Nc6 {[%clk 0:01:50]} 14. d5 {[%clk 0:01:39]}  Bxc3 {[%clk 0:01:48]} 15. dxc6 {[%clk 0:01:39]}  Bxa1 {[%clk 0:01:47]} 16. Qxa1 {[%clk 0:01:39]}  f6 {[%clk 0:01:43]} 17. Bh6 {[%clk 0:01:32]}  Rf7 {[%clk 0:01:40]} 18. e5 {[%clk 0:01:32]}  Qd5 {[%clk 0:01:34]} 19. Re1 {[%clk 0:01:20]}  Qxc6 {[%clk 0:01:32]} 20. e6 {[%clk 0:01:19]}  Rg7 {[%clk 0:01:32]} 21. Bxg7 {[%clk 0:01:17]}  Kxg7 {[%clk 0:01:33]} 22. Qc3 {[%clk 0:00:38]}  Rd8 {[%clk 0:01:29]} 23. h4 {[%clk 0:00:38]}  Nc7 {[%clk 0:01:26]} 24. h5 {[%clk 0:00:32]}  Nxe6 {[%clk 0:01:26]} 25. hxg6 {[%clk 0:00:32]}  hxg6 {[%clk 0:01:19]} 26. Qe3 {[%clk 0:00:24]}  Kf7 {[%clk 0:01:17]} 27. Qh6 {[%clk 0:00:23]}  Rd3 {[%clk 0:01:10]} 28. Nh4 {[%clk 0:00:23]}  Nf8 {[%clk 0:01:07]} 29. g3 {[%clk 0:00:11]}  Qd5 {[%clk 0:00:57]} 30. Ng2 {[%clk 0:00:11]}  Rd1 {[%clk 0:00:57]} 31. Rxd1 {[%clk 0:00:09]}  Qxd1+ {[%clk 0:00:58]} 32. Kh2 {[%clk 0:00:10]}  Qh5+ {[%clk 0:00:55]} 33. Qxh5 {[%clk 0:00:10]}  gxh5 {[%clk 0:00:56]} 34. Nf4 {[%clk 0:00:10]}  Ne6 {[%clk 0:00:51]} 35. Nxh5 {[%clk 0:00:10]}  Nd4 {[%clk 0:00:48]} 36. Nf4 {[%clk 0:00:10]}  Nb5 {[%clk 0:00:43]} 37. Nd5 {[%clk 0:00:09]}  Ke6 {[%clk 0:00:42]} 38. Nf4+ {[%clk 0:00:09]}  Kf5 {[%clk 0:00:42]} 39. Nd3 {[%clk 0:00:07]}  Nc3 {[%clk 0:00:41]} 40. Nc1 {[%clk 0:00:07]}  Ke4 {[%clk 0:00:40]} 41. Kh3 {[%clk 0:00:06]}  Kf3 {[%clk 0:00:40]} 42. a3 {[%clk 0:00:02]}  Kxf2 {[%clk 0:00:39]} 43. Nd3+ {[%clk 0:00:02]}  Ke3 {[%clk 0:00:38]} 44. Nf4 {[%clk 0:00:02]}  Nb1 {[%clk 0:00:38]} 45. Nd5+ {[%clk 0:00:02]}  Kd4 {[%clk 0:00:38]} 46. Nxe7 {[%clk 0:00:02]}  Nxa3 {[%clk 0:00:39]} 47. Nc6+ {[%clk 0:00:03]}  Kc3 {[%clk 0:00:36]} 48. Nxa7 {[%clk 0:00:03]}  Kxb3 {[%clk 0:00:36]} 49. Kg4 {[%clk 0:00:04]}  c4 {[%clk 0:00:37]} 50. Kf5 {[%clk 0:00:05]}  c3 {[%clk 0:00:37]} 51. Nb5 {[%clk 0:00:04]}  Nxb5 {[%clk 0:00:36]} 0-1


[Site "https://www.chess.com"]

[Event "Titled Tuesday Blitz September 27 Early 2022"]
[White "Jones, Daniel"]
[Black "Schekachikhin, Maksim"]
[WhiteFideId "2019655"]
[BlackFideId "24177830"]
[WhiteElo "2335"]
[BlackElo "2226"]
[Result "1-0"]
[Round "03"]
[TimeControl "180+1"]
[Date "2022.09.27"]
[WhiteClock "0:01:00"]
[BlackClock "0:02:02"]

1. f4 {[%clk 0:03:00]}  e5 {[%clk 0:02:57]} 2. fxe5 {[%clk 0:03:00]}  d6 {[%clk 0:02:57]} 3. Nf3 {[%clk 0:03:00]}  dxe5 {[%clk 0:02:55]} 4. e4 {[%clk 0:03:01]}  Nc6 {[%clk 0:02:55]} 5. Bc4 {[%clk 0:03:01]}  Bc5 {[%clk 0:02:52]} 6. c3 {[%clk 0:03:01]}  Bg4 {[%clk 0:02:49]} 7. b4 {[%clk 0:03:00]}  Bb6 {[%clk 0:02:47]} 8. b5 {[%clk 0:03:00]}  Nce7 {[%clk 0:02:45]} 9. Bxf7+ {[%clk 0:03:00]}  Kxf7 {[%clk 0:02:44]} 10. Nxe5+ {[%clk 0:03:00]}  Ke6 {[%clk 0:02:42]} 11. Qxg4+ {[%clk 0:02:46]}  Kxe5 {[%clk 0:02:42]} 12. d4+ {[%clk 0:02:44]}  Bxd4 {[%clk 0:02:41]} 13. Bf4+ {[%clk 0:02:29]}  Kf6 {[%clk 0:02:38]} 14. Rf1 {[%clk 0:02:06]}  Ng6 {[%clk 0:02:30]} 15. Bxc7+ {[%clk 0:01:48]}  Ke7 {[%clk 0:02:29]} 16. Bxd8+ {[%clk 0:01:46]}  Rxd8 {[%clk 0:02:26]} 17. cxd4 {[%clk 0:01:46]}  Nf6 {[%clk 0:02:26]} 18. Rxf6 {[%clk 0:01:36]}  gxf6 {[%clk 0:02:24]} 19. Nc3 {[%clk 0:01:31]}  Rxd4 {[%clk 0:02:22]} 20. Nd5+ {[%clk 0:01:31]}  Kd6 {[%clk 0:02:20]} 21. Qg3+ {[%clk 0:01:29]}  Ne5 {[%clk 0:02:19]} 22. Qg7 {[%clk 0:01:21]}  Rxe4+ {[%clk 0:02:16]} 23. Kf1 {[%clk 0:01:21]}  Re8 {[%clk 0:02:11]} 24. Nxf6 {[%clk 0:01:19]}  Rf4+ {[%clk 0:02:10]} 25. Kg1 {[%clk 0:01:19]}  Re6 {[%clk 0:02:07]} 26. Rd1+ {[%clk 0:01:10]}  Kc5 {[%clk 0:02:05]} 27. Qc7+ {[%clk 0:01:05]}  Kxb5 {[%clk 0:02:02]} 28. Nd5 {[%clk 0:01:00]} 1-0


[Site "https://www.chess.com"]